bitfinex/quotes_SOLUSD_20251127
["timestamp","ask_amount","ask_price","bid_price","bid_amount"]
[1764280672014,0.2,142.15,142.14,4.29136528]
[1764280676501,0.2,142.15,142.14,2.98734514]
[1764280682633,0.87,142.15,142.12,9.34355296]
[1764280682836,0.87,142.15,142.12,9.34360074]
[1764280683138,0.67,142.14,142.12,9.34360074]
[1764280683636,0.87,142.15,142.12,10.02360074]
[1764280684908,0.67,142.14,142.12,10.02360074]
[1764280686424,0.67,142.14,142.1,0.68]
[1764280686631,0.67,142.14,142.1,2.30734514]
[1764280686632,3.1,142.13,142.1,2.30734514]
[1764280687004,3.77,142.13,142.1,2.98734514]
[1764280687427,3.77,142.13,142.1,10.0244549]
[1764280687932,3.1,142.13,142.11,2.98734514]
[1764280691130,3.1,142.13,142.12,2.30734514]
[1764280693229,3.1,142.13,142.12,3.02734514]
[1764280694043,3.1,142.13,142.11,9.34407116]
[1764280694243,3.1,142.13,142.11,10.06407116]
[1764280698448,3.1,142.13,142.12,0.72]
[1764280701950,3.1,142.13,142.1,7.03729767]
[1764280702247,3.1,142.13,142.11,3.02734514]
[1764280705060,3.1,142.13,142.11,10.06401417]
[1764280705855,3.1,142.13,142.11,7.75666903]
[1764280706056,3.8,142.13,142.11,7.03666903]
[1764280706259,0.7,142.12,142.1,7.03711122]
[1764280708647,0.7,142.12,142.1,10.06445636]
[1764280709636,0.7,142.12,142.1,7.75711122]
[1764280714038,0.7,142.12,142.08,3.02734514]
[1764280714256,0.7,142.12,142.08,0.72]
[1764280715446,7.73646483,142.12,142.08,7.75823625]
[1764280715852,0.7,142.11,142.08,7.75823625]
[1764280719465,7.73685612,142.11,142.08,0.72]
[1764280719774,7.73685612,142.11,142.08,3.02734514]
[1764280721443,7.73685612,142.11,142.09,0.71]
[1764280724274,0.68,142.11,142.09,3.01734514]
[1764280724667,0.68,142.11,142.09,0.71]
[1764280724866,0.68,142.11,142.09,3.01734514]
[1764280725668,7.71654091,142.12,142.09,3.01734514]
[1764280728271,7.71654091,142.12,142.09,2.30734514]
[1764280728476,7.71654091,142.12,142.09,3.01734514]
[1764280728771,0.68,142.11,142.09,3.01734514]
[1764280729274,7.71686477,142.11,142.09,3.01734514]
[1764280730552,7.71686477,142.11,142.09,2.30734514]
[1764280730748,0.68,142.1,142.05,22.29257081]
[1764280730962,3.1,142.09,142.06,0.71]
[1764280731368,3.78,142.09,142.06,0.71]
[1764280732976,10.81783006,142.09,142.06,0.71]
[1764280733674,3.1,142.09,142.07,2.30734514]
[1764280733982,3.1,142.09,142.08,2.30734514]
[1764280734158,3.1,142.09,142.08,3.01734514]
[1764280734674,3.78,142.09,142.05,27.73486996]
[1764280734851,0.68,142.08,142.05,30.0422151]
[1764280735270,0.68,142.08,142.05,29.3322151]
[1764280735470,0.68,142.08,142.06,0.71]
[1764280736856,3.1,142.09,142.06,11.35880095]
[1764280737094,3.78,142.09,142.06,11.35880095]
[1764280738584,3.1,142.09,142.07,4.31961239]
[1764280738884,3.78,142.09,142.07,4.31961239]
[1764280740079,3.1,142.09,142.07,4.31961239]
[1764280740861,3.1,142.09,142.07,0.71]
[1764280742477,3.78,142.09,142.07,0.71]
[1764280743764,3.1,142.09,142.07,0.71]
[1764280748796,3.1,142.09,142.08,3.60961239]
[1764280748998,3.1,142.13,142.08,3.60961239]
[1764280749181,3.1,142.13,142.11,3.60961239]
[1764280749491,3.1,142.13,142.12,4.31961239]
[1764280751797,3.1,142.13,142.12,0.71]
[1764280756003,3.1,142.13,142.11,4.26961239]
[1764280756205,3.1,142.13,142.11,0.66]
[1764280756391,3.76,142.13,142.11,0.66]
[1764280756586,3.76,142.13,142.11,7.69676058]
[1764280759778,3.76,142.13,142.11,11.30637297]
[1764280763385,3.1,142.13,142.11,11.30637297]
[1764280770212,0.66,142.12,142.09,7.9148384]
[1764280770415,3.60961239,142.1,142.02,0.66]
[1764280770711,3.60961239,142.07,142.03,3.1]
[1764280770889,0.66,142.06,142.02,4.33737438]
[1764280771090,3.1,142.05,142.02,4.33737438]
[1764280771509,3.76,142.05,142.02,4.33737438]
[1764280772790,3.76,142.05,142.02,10.71834105]
[1764280772987,3.76,142.05,142.02,11.37834105]
[1764280773209,3.76,142.05,142.02,10.71834105]
[1764280773399,3.1,142.05,142.03,0.66]
[1764280773794,3.1,142.05,142.02,10.71834105]
[1764280773994,3.1,142.05,142.03,0.66]
[1764280775303,3.76,142.05,142.03,0.66]
[1764280778813,3.1,142.05,142.03,7.7007117]
[1764280779219,3.1,142.05,142.04,0.66]
[1764280780505,3.1,142.05,142.04,11.30988273]
[1764280781607,3.1,142.05,142.04,0.66]
[1764280783418,3.1,142.05,142.04,7.70027034]
[1764280790329,7.69878857,142.07,142.04,7.70027034]
[1764280790527,3.1,142.06,142.04,7.70027034]
[1764280795226,3.1,142.06,142.04,7.04027034]
[1764280795430,3.1,142.06,142.05,0.71]
[1764280795818,3.1,142.06,142.04,0.71]
[1764280796822,3.76,142.06,142.04,0.71]
[1764280797025,3.1,142.06,142.04,0.71]
[1764280799427,3.76,142.06,142.02,0.71]
[1764280799731,3.76,142.06,142.03,0.71]
[1764280800031,3.1,142.06,142.03,3.02120184]
[1764280800333,2.31120184,142.04,141.97,0.71]
[1764280800518,0.66,142.05,142.0,18.71]
[1764280800726,2.31120184,142.03,142.0,18.0]
[1764280801036,5.41120184,142.02,142.0,18.0]
[1764280801331,3.1,142.02,142.0,18.0]
[1764280801510,3.76,142.02,142.0,18.0]
[1764280801710,3.1,142.02,142.01,3.02120184]
[1764280802141,3.1,142.05,142.01,3.02120184]
[1764280802318,3.76,142.05,142.0,25.04220585]
[1764280802525,3.76,142.05,142.02,0.71]
[1764280803150,3.76,142.05,142.02,10.06245662]
[1764280803626,3.76,142.05,142.03,0.71]
[1764280804432,3.76,142.05,142.02,9.35245662]
[1764280804433,3.76,142.05,142.02,3.02120184]
[1764280805416,3.76,142.05,142.03,0.71]
[1764280805611,3.1,142.05,142.03,3.02120184]
[1764280806756,3.1,142.05,142.03,10.06186551]
[1764280807243,3.1,142.05,142.03,0.71]
[1764280808222,3.1,142.05,142.03,10.06196528]
[1764280809025,3.76,142.05,142.03,0.71]
[1764280809240,3.1,142.05,142.03,0.71]
[1764280811749,3.1,142.05,142.03,10.06194058]
[1764280815041,3.1,142.05,142.03,7.75073874]
[1764280815856,3.1,142.05,142.03,7.04073874]
[1764280816059,3.1,142.05,142.04,0.69]
[1764280817566,3.1,142.05,142.04,7.73027034]
[1764280818549,3.1,142.08,142.04,10.04147218]
[1764280818729,3.1,142.08,142.05,3.00120184]
[1764280819134,3.1,142.08,142.06,0.69]
[1764280820054,3.1,142.08,142.06,3.00120184]
[1764280820255,3.1,142.08,142.07,2.31120184]
[1764280820438,3.1,142.08,142.07,10.03998553]
[1764280821555,3.1,142.08,142.07,7.72878369]
[1764280823862,10.79855427,142.08,142.04,7.04023939]
[1764280824068,2.97120184,142.07,142.02,7.04109756]
[1764280824256,0.66,142.06,142.02,7.73109756]
[1764280825764,0.66,142.06,142.03,0.69]
[1764280826553,0.66,142.06,142.03,3.00120184]
[1764280827197,0.66,142.06,142.03,10.04163099]
[1764280827670,0.66,142.06,142.03,7.73042915]
[1764280828761,13.32954214,142.08,142.04,3.00120184]
[1764280828762,0.66,142.07,142.04,3.00120184]
[1764280828962,4.63978603,142.08,142.04,3.00120184]
[1764280829164,4.63978603,142.08,142.05,0.69]
[1764280829464,4.63978603,142.08,142.05,7.72961366]
[1764280829677,3.1,142.08,142.05,10.0408155]
[1764280829860,3.76,142.08,142.05,10.0408155]
[1764280830060,0.66,142.07,142.05,10.0408155]
[1764280830257,3.1,142.08,142.06,0.69]
[1764280830864,3.76,142.08,142.05,9.3508155]
[1764280831173,3.76,142.08,142.05,10.0408155]
[1764280833375,3.76,142.08,142.05,7.72961366]
[1764280833580,3.76,142.08,142.05,0.69]
[1764280834472,1.53984796,142.07,142.03,10.04174514]
[1764280834878,0.66,142.06,142.03,10.04174514]
[1764280839385,0.66,142.06,142.03,7.7305433]
[1764280839960,0.66,142.06,142.03,10.04174514]
[1764280840163,0.66,142.06,142.02,2.31120184]
[1764280840164,7.69957815,142.06,142.02,2.31120184]
[1764280840363,7.69957815,142.06,142.02,3.02120184]
[1764280840563,0.71,142.05,142.02,3.02120184]
[1764280840767,0.71,142.05,142.02,10.06244675]
[1764280842092,0.71,142.05,142.03,0.71]
[1764280842972,7.74957815,142.06,142.03,0.71]
[1764280845268,7.74957815,142.06,142.03,7.75076483]
[1764280846284,7.74957815,142.06,142.03,0.71]
[1764280849292,7.74957815,142.06,142.03,7.75069078]
[1764280850687,7.03957815,142.06,142.03,7.75069078]
[1764280850895,7.74957815,142.06,142.03,7.75069078]
[1764280852101,3.1,142.05,142.03,7.75069078]
[1764280853392,3.1,142.05,142.03,10.06189262]
[1764280854401,3.1,142.05,142.03,7.75069078]
[1764280855603,10.13985954,142.05,142.01,7.04162715]
[1764280855787,10.13985954,142.05,142.0,18.71]
[1764280855788,0.71,142.04,142.0,18.71]
[1764280856276,0.71,142.04,142.01,0.71]
[1764280856678,7.75030608,142.04,142.01,0.71]
[1764280857406,0.71,142.03,142.01,0.71]
[1764280857905,0.71,142.03,142.0,25.04180243]
[1764280858109,0.71,142.03,142.0,25.75180243]
[1764280858410,0.71,142.03,142.01,0.71]
[1764280858611,7.75030608,142.04,142.01,0.71]
[1764280859008,0.71,142.03,142.0,18.0]
[1764280859416,3.02120184,142.03,142.0,18.71]
[1764280859713,0.71,142.03,142.0,18.71]
[1764280860318,2.31120184,142.01,142.0,18.0]
[1764280860485,6.12120184,142.01,142.0,18.0]
[1764280860684,7.42525634,142.01,142.0,18.0]
[1764280861108,14.46701396,142.01,142.0,18.0]
[1764280862001,10.85175762,142.01,142.0,18.0]
[1764280864023,14.46701396,142.01,142.0,18.0]
[1764280864620,10.85175762,142.01,142.0,18.0]
[1764280865419,14.46701396,142.01,142.0,18.0]
[1764280869006,10.85175762,142.01,142.0,18.0]
[1764280871208,14.46701396,142.01,142.0,18.0]
[1764280873037,10.85175762,142.01,142.0,18.0]
[1764280873439,14.46701396,142.01,142.0,18.0]
[1764280879758,10.85175762,142.01,142.0,18.0]
[1764280881941,14.46701396,142.01,142.0,18.0]
[1764280883851,10.85175762,142.01,142.0,18.0]
[1764280887055,3.1,142.01,142.0,22.33525634]
[1764280887831,3.1,142.01,142.0,25.76225352]
[1764280889822,3.1,142.01,142.0,29.37750986]
[1764280892275,3.1,142.04,142.0,29.37750986]
[1764280892470,3.1,142.04,142.01,4.33525634]
[1764280893066,3.1,142.04,142.02,0.72]
[1764280893468,3.1,142.04,142.02,4.33525634]
[1764280893642,3.1,142.04,142.03,3.61525634]
[1764280893842,3.1,142.04,142.03,11.37602237]
[1764280898876,3.1,142.04,142.03,14.99127871]
[1764280899263,3.1,142.04,142.03,31.30014271]
[1764280900700,0.66,142.09,142.03,48.90205779]
[1764280900992,3.76,142.09,142.08,3.61525634]
[1764280901194,3.76,142.09,142.07,3.61525634]
[1764280902983,3.1,142.09,142.06,10.65442966]
[1764280903189,0.66,142.08,142.06,10.65442966]
[1764280905171,0.66,142.08,142.05,7.03960377]
[1764280905392,1.53978603,142.08,142.05,7.03960377]
[1764280905895,0.66,142.07,142.05,10.65486011]
[1764280906115,0.66,142.07,142.05,11.34486011]
[1764280907517,0.66,142.08,142.05,11.34486011]
[1764280908512,7.6983074,142.08,142.04,7.03985693]
[1764280908696,7.6983074,142.08,142.04,10.65511327]
[1764280908898,0.66,142.07,142.05,3.61525634]
[1764280909783,0.66,142.07,142.05,10.65502845]
[1764280909979,0.66,142.07,142.05,11.34502845]
[1764280911810,0.66,142.07,142.04,3.61525634]
[1764280912188,0.66,142.07,142.04,4.30525634]
[1764280913316,0.66,142.07,142.04,11.34541842]
[1764280914210,7.69893795,142.07,142.04,0.69]
[1764280914413,7.69893795,142.07,142.03,4.30525634]
[1764280914723,7.69893795,142.07,142.04,0.69]
[1764280915319,0.66,142.06,142.04,0.69]
[1764280915617,3.1,142.05,142.04,0.69]
[1764280920119,3.1,142.05,142.03,4.30525634]
[1764280920321,3.1,142.05,142.04,0.69]
[1764280920525,3.76,142.05,142.02,3.00161325]
[1764280920898,3.76,142.05,142.03,0.69]
[1764280921099,3.1,142.05,142.03,0.69]
[1764280922600,3.1,142.05,142.03,3.00161325]
[1764280922796,3.1,142.05,142.03,0.69]
[1764280923020,3.1,142.05,142.03,3.00161325]
[1764280924703,3.1,142.05,142.03,10.04237664]
[1764280925121,3.1,142.05,142.03,9.35237664]
[1764280925305,3.1,142.05,142.04,0.69]
[1764280926425,3.1,142.05,142.03,9.35237664]
[1764280926627,3.1,142.05,142.03,10.04237664]
[1764280930415,3.1,142.05,142.01,33.91279074]
[1764280930416,0.72,142.04,142.01,3.03161325]
[1764280930729,3.1,142.05,142.02,3.03161325]
[1764280930929,3.82,142.05,142.02,3.03161325]
[1764280931307,3.1,142.05,142.03,0.72]
[1764280931726,3.1,142.04,142.03,0.72]
[1764280933415,3.1,142.04,142.03,10.07237928]
[1764280934018,3.1,142.04,142.03,7.76076603]
[1764280934218,3.1,142.04,142.03,10.07237928]
[1764280935719,3.1,142.04,142.03,7.76076603]
[1764280937743,3.1,142.04,142.03,10.07237928]
[1764280939042,3.1,142.07,142.03,10.07237928]
[1764280939247,0.87947653,142.13,142.06,18.62047725]
[1764280939445,3.1,142.12,142.06,16.308864]
[1764280939618,3.1,142.12,142.1,2.31161325]
[1764280940048,3.8,142.12,142.1,2.31161325]
[1764280940344,3.8,142.12,142.09,0.7]
[1764280940546,3.8,142.12,142.1,2.31161325]
[1764280941879,3.8,142.12,142.09,10.04913037]
[1764280943951,3.8,142.12,142.09,9.34913037]
[1764280944153,3.8,142.12,142.1,3.01161325]
[1764280944680,3.1,142.12,142.11,3.01161325]
[1764280946069,3.1,142.12,142.11,10.04841572]
[1764280948586,3.3,142.15,142.11,27.64042191]
[1764280948785,3.3,142.15,142.14,2.31161325]
[1764280949371,4.0,142.15,142.13,2.31161325]
[1764280949571,3.3,142.15,142.13,2.31161325]
[1764280949773,3.3,142.15,142.13,3.01161325]
[1764280950169,0.7,142.14,142.12,7.03610825]
[1764280950387,0.7,142.14,142.12,9.3477215]
[1764280950684,3.3,142.15,142.12,10.0477215]
[1764280950988,4.0,142.15,142.13,3.01161325]
[1764280951383,4.0,142.15,142.13,2.31161325]
[1764280953091,3.3,142.15,142.13,10.04725313]
[1764280953290,3.3,142.15,142.14,2.31161325]
[1764280953592,3.3,142.15,142.14,3.01161325]
[1764280954166,3.3,142.15,142.14,0.7]
[1764280954788,3.3,142.15,142.13,9.34725313]
[1764280954989,4.0,142.15,142.13,10.04725313]
[1764280959377,0.7,142.14,142.13,2.31161325]
[1764280959778,4.0,142.15,142.12,2.31161325]
[1764280959984,4.0,142.15,142.12,0.7]
[1764280960185,4.0,142.15,142.13,2.31161325]
[1764280961584,4.0,142.15,142.13,3.01161325]
[1764280962398,3.97,142.15,142.14,2.31161325]
[1764280962605,3.97,142.15,142.13,2.31161325]
[1764280962783,3.97,142.15,142.13,3.01161325]
[1764280963288,3.3,142.15,142.13,3.01161325]
[1764280963804,3.97,142.15,142.13,3.01161325]
[1764280964203,3.47,142.15,142.13,3.01161325]
[1764280964399,3.47,142.15,142.13,2.31161325]
[1764280964602,2.8,142.15,142.12,9.34778037]
[1764280964792,0.67,142.14,142.12,9.34778037]
[1764280964985,0.67,142.14,142.13,2.31161325]
[1764280965181,2.8,142.15,142.13,2.31161325]
[1764280965385,3.47,142.15,142.13,2.31161325]
[1764280967394,3.47,142.15,142.12,10.04778037]
[1764280968405,0.67,142.14,142.12,9.34778037]
[1764280969207,0.2,142.16,142.13,0.7]
[1764280969412,3.3,142.16,142.15,2.31161325]
[1764280970591,3.3,142.16,142.11,7.91285173]
[1764280970592,25.11880892,142.15,142.11,7.91285173]
[1764280970806,11.12155817,142.12,142.05,0.7]
[1764280971005,2.31161325,142.09,142.05,0.7]
[1764280971212,2.31161325,142.09,142.05,7.73972147]
[1764280971496,0.67,142.08,142.05,7.73972147]
[1764280971696,3.1,142.07,142.05,7.73972147]
[1764280972116,3.1,142.07,142.05,10.05133472]
[1764280972318,3.1,142.07,142.06,3.01161325]
[1764280972518,3.1,142.07,142.06,10.05089242]
[1764280975429,3.1,142.07,142.06,7.73927917]
[1764280978913,3.1,142.07,142.04,25.66055713]
[1764280979108,3.77,142.07,142.04,26.36055713]
[1764280979910,3.1,142.07,142.05,0.7]
[1764280980625,3.1,142.07,142.04,25.66055713]
[1764280980626,3.77,142.07,142.04,26.95940319]
[1764280980820,3.77,142.07,142.05,7.73975828]
[1764280981014,0.67,142.06,142.03,3.67542797]
[1764280981217,4.28045931,142.06,142.0,21.61045931]
[1764280981430,4.28045931,142.06,142.01,27.72810105]
[1764280981604,0.67,142.05,142.01,27.72810105]
[1764280981930,0.67,142.05,142.02,0.7]
[1764280982502,3.1,142.07,142.04,3.61045931]
[1764280982703,3.1,142.07,142.06,3.61045931]
[1764280983007,3.1,142.07,142.06,10.64973848]
[1764280983208,3.1,142.07,142.06,7.73927917]
[1764280983920,3.1,142.07,142.06,11.34973848]
[1764280986227,0.87953841,142.12,142.06,28.94793642]
[1764280986525,3.1,142.11,142.08,3.61045931]
[1764280986930,3.77,142.11,142.08,3.61045931]
[1764280987131,3.1,142.11,142.09,3.61045931]
[1764280987425,3.1,142.11,142.09,4.31045931]
[1764280988010,3.1,142.11,142.08,4.31045931]
[1764280988224,3.1,142.11,142.09,7.03779294]
[1764280989611,3.1,142.11,142.09,10.64825225]
[1764280990129,3.1,142.11,142.09,11.34825225]
[1764280990327,7.91537719,142.13,142.09,11.34825225]
[1764280990328,0.68,142.13,142.1,3.61045931]
[1764280990624,3.1,142.12,142.11,3.61045931]
[1764280991444,8.26999772,142.12,142.08,7.03823779]
[1764280991642,4.29045931,142.11,142.08,7.03823779]
[1764280992232,0.68,142.1,142.07,7.03878369]
[1764280992838,0.68,142.1,142.07,10.649243]
[1764280995467,0.68,142.1,142.07,11.359243]
[1764280995968,0.68,142.1,142.08,3.61045931]
[1764280997779,4.29045931,142.1,142.05,0.71]
[1764280997981,0.68,142.09,142.05,0.71]
[1764280998158,3.1,142.08,142.05,0.71]
[1764280998687,3.78,142.08,142.05,0.71]
[1764280998978,3.1,142.08,142.06,3.61045931]
[1764280999188,0.2,142.16,142.07,3.61045931]
[1764280999189,0.67,142.13,142.07,3.61045931]
[1764280999392,3.77,142.13,142.11,3.61045931]
[1764281001573,10.80590582,142.13,142.11,3.61045931]
[1764281003872,10.13590582,142.13,142.11,3.61045931]
[1764281004081,0.67,142.12,142.11,3.61045931]
[1764281005085,10.80590582,142.13,142.11,3.61045931]
[1764281007278,0.67,142.14,142.12,3.61045931]
[1764281007593,3.77,142.13,142.12,3.61045931]
[1764281008464,7.38045931,142.13,142.09,3.61045931]
[1764281008669,1.54953841,142.12,142.08,3.61045931]
[1764281008879,5.15999772,142.12,142.08,3.61045931]
[1764281009182,0.67,142.11,142.08,3.61045931]
[1764281009385,3.1,142.1,142.08,3.61045931]
[1764281009561,3.1,142.1,142.07,4.32045931]
[1764281009766,3.77,142.1,142.07,4.32045931]
[1764281011793,3.77,142.1,142.08,3.61045931]
[1764281013467,3.1,142.1,142.08,3.61045931]
[1764281014296,3.77,142.1,142.08,3.61045931]
[1764281014594,3.1,142.1,142.08,4.32045931]
[1764281015389,0.67,142.09,142.04,0.71]
[1764281015576,0.67,142.09,142.05,4.32045931]
[1764281015983,0.67,142.09,142.06,0.71]
[1764281016875,0.67,142.09,142.07,3.61045931]
[1764281017399,10.13756484,142.1,142.07,3.61045931]
[1764281017589,10.80756484,142.1,142.07,3.61045931]
[1764281019790,10.80756484,142.1,142.07,4.32045931]
[1764281022101,0.65,142.09,142.06,10.64966458]
[1764281022285,0.65,142.09,142.06,11.34966458]
[1764281022801,0.65,142.09,142.06,10.64966458]
[1764281023011,3.1,142.1,142.07,4.31045931]
[1764281023181,3.75,142.1,142.07,4.31045931]
[1764281023599,3.1,142.09,142.08,4.31045931]
[1764281024683,3.1,142.09,142.08,11.34874759]
[1764281026377,3.75,142.09,142.03,21.27866658]
[1764281026706,0.65,142.08,142.04,11.35072965]
[1764281026904,0.65,142.08,142.04,7.74027034]
[1764281027204,0.65,142.08,142.05,0.7]
[1764281028304,0.65,142.08,142.04,11.35072965]
[1764281029950,0.65,142.08,142.05,7.73946629]
[1764281032107,7.68829964,142.08,142.03,3.67675808]
[1764281032404,3.61045931,142.07,142.03,4.37675808]
[1764281032616,4.26045931,142.07,142.03,4.37675808]
[1764281032786,0.65,142.06,142.03,4.37675808]
[1764281032988,3.1,142.05,142.03,4.37675808]
[1764281033708,3.1,142.05,142.03,7.28721739]
[1764281033911,3.1,142.05,142.04,4.31045931]
[1764281035900,3.1,142.05,142.04,0.7]
[1764281038117,3.1,142.05,142.03,3.67675808]
[1764281038319,3.1,142.05,142.03,4.37675808]
[1764281038822,3.75,142.05,142.03,3.67675808]
[1764281039709,3.75,142.05,142.01,4.31045931]
[1764281039710,3.75,142.05,142.01,7.74155375]
[1764281039922,3.75,142.05,142.01,11.41960019]
[1764281040105,3.75,142.05,142.02,0.7]
[1764281040921,10.65011648,142.06,142.02,0.7]
[1764281041107,7.03875117,142.08,142.05,3.61045931]
[1764281041305,10.13875117,142.08,142.06,3.61045931]
[1764281041825,10.13875117,142.08,142.05,4.31045931]
[1764281042528,10.13875117,142.08,142.01,11.41961366]
[1764281042529,2.31188751,142.06,142.01,11.41961366]
[1764281042823,12.45182991,142.05,142.01,4.37804644]
[1764281043027,12.45182991,142.05,142.01,11.41973964]
[1764281043202,0.65,142.04,142.01,11.41973964]
[1764281046722,0.65,142.04,142.01,13.73162715]
[1764281046916,3.75,142.05,142.01,13.73162715]
[1764281048537,0.65,142.04,142.01,3.67804644]
[1764281048743,2.31188751,142.03,142.0,18.0]
[1764281049037,9.35268568,142.03,142.0,18.7]
[1764281049338,10.00268568,142.03,142.0,18.7]
[1764281049736,9.35268568,142.03,142.0,18.0]
[1764281049945,7.69079817,142.03,142.0,18.7]
[1764281050148,7.04079817,142.03,142.0,18.0]
[1764281050441,7.04079817,142.03,142.01,0.71]
[1764281051033,7.04027034,142.04,142.01,0.71]
[1764281051342,7.71027034,142.04,142.01,0.71]
[1764281054142,7.71091768,142.03,142.0,18.0]
[1764281054445,21.57940865,142.05,142.01,3.02188751]
[1764281054446,3.1,142.02,142.01,3.02188751]
[1764281055539,0.87990989,142.06,142.01,10.06337515]
[1764281055725,0.67,142.05,142.03,2.31188751]
[1764281055928,3.77,142.05,142.03,2.31188751]
[1764281056334,3.1,142.05,142.03,2.31188751]
[1764281056816,0.69,142.04,142.0,28.07384196]
[1764281057452,0.69,142.04,142.01,2.31188751]
[1764281057621,0.69,142.04,142.01,9.35354365]
[1764281059038,10.13986701,142.05,142.02,0.72]
[1764281059250,10.82986701,142.05,142.02,0.72]
[1764281061141,10.82986701,142.05,142.01,10.07354365]
[1764281061651,10.82986701,142.05,142.02,0.72]
[1764281062022,10.13986701,142.05,142.02,10.07313323]
[1764281062222,10.82986701,142.05,142.02,3.03188751]
[1764281062466,0.69,142.04,142.0,18.0]
[1764281062748,2.31188751,142.03,142.0,18.72]
[1764281062927,3.1,142.02,142.0,18.72]
[1764281064058,0.87990989,142.06,142.01,3.03188751]
[1764281064266,3.1,142.06,142.04,2.31188751]
[1764281064736,3.1,142.06,142.05,0.72]
[1764281065145,3.1,142.06,142.04,2.31188751]
[1764281065345,3.1,142.06,142.04,3.03188751]
[1764281065732,3.1,142.06,142.05,2.31188751]
[1764281068062,3.1,142.06,142.05,3.03188751]
[1764281070658,3.1,142.06,142.05,10.07166223]
[1764281079664,0.69,142.12,142.05,7.75977472]
[1764281079864,0.69,142.11,142.09,2.31188751]
[1764281080071,0.69,142.11,142.06,0.72]
[1764281080072,1.5696003,142.11,142.08,2.31188751]
[1764281080573,0.68,142.1,142.08,2.31188751]
[1764281080743,0.68,142.1,142.06,0.72]
[1764281081065,0.87972411,142.09,142.04,19.30075151]
[1764281081273,5.41188751,142.08,142.04,0.68]
[1764281081570,3.78,142.08,142.04,2.99188751]
[1764281081770,0.68,142.07,142.04,2.99188751]
[1764281082455,0.68,142.07,142.05,7.03977472]
[1764281082972,3.78,142.08,142.05,7.03977472]
[1764281083152,0.68,142.07,142.05,7.03977472]
[1764281086570,2.31188751,142.06,142.03,0.68]
[1764281086778,10.03067171,142.07,142.03,0.68]
[1764281087654,10.03067171,142.07,142.01,27.63803918]
[1764281087854,0.68,142.06,142.01,26.95803918]
[1764281088054,0.68,142.06,142.02,0.68]
[1764281088277,0.68,142.06,142.02,2.99188751]
[1764281088477,0.68,142.06,142.03,0.68]
[1764281088678,0.68,142.07,142.03,2.99188751]
[1764281088880,0.68,142.07,142.04,2.31188751]
[1764281089863,0.68,142.07,142.04,9.35205667]
[1764281092474,0.68,142.07,142.04,10.03205667]
[1764281093773,7.91825643,142.08,142.04,9.35205667]
[1764281093974,3.1,142.08,142.07,2.31188751]
[1764281095085,3.1,142.08,142.06,10.03112966]
[1764281096186,3.78,142.08,142.06,9.35112966]
[1764281096987,3.1,142.08,142.06,9.35112966]
[1764281097291,3.1,142.08,142.06,10.03112966]
[1764281099587,3.1,142.08,142.06,7.03924215]
[1764281099788,8.59752549,142.09,142.06,7.71924215]
[1764281100090,3.1,142.08,142.06,7.71924215]
[1764281100676,3.1,142.08,142.06,10.03112966]
[1764281101267,3.1,142.08,142.02,2.31188751]
[1764281101268,5.41188751,142.08,142.02,2.31188751]
[1764281101468,3.1,142.08,142.05,0.68]
[1764281102687,7.71749088,142.13,142.07,2.31188751]
[1764281102993,3.1,142.12,142.1,2.31188751]
[1764281103864,3.1,142.12,142.09,0.68]